Cogmind - Beta 15 @@@ ROGUE MODE // 2025.05.26 @ 02:36:58 Player: Geo Result: Destroyed by WW-OJY(b) with Great Maul Performance ------------- Evolutions (0) 0 Regions Visited (3) 600 Robots Destroyed (5) 25 Value Destroyed (185) 185 Prototype IDs (19) 380 Alien Tech Used (0) 0 Bonus (800) 800 TOTAL SCORE: 1990 Bonus ------- Registered with UFD 300 Met Optimus in HQ 500 Cogmind --------- Core Integrity 0/250 Matter 255/300 Energy 85/100 System Corruption 0% Temperature Cool (0) Movement Treading (160) Location -9/Scraptown Parts ------- > --- POWER (1) -------- (None) > --- PROPULSION (2) --- Spiked Treads Medium Treads > --- UTILITY (2) ------ High-capacity Storage Unit > --- WEAPON (2) ------- Companion Sword > --- INVENTORY (20) --- Meta Core Light Treads Scrap Suit Scrap Suit Scrap Suit Expert System Makeshift Hacking Suite Scrapoid Pod Battle Rifle LU-1G1's Laser Shovel CPS Tube (2) CPS Tube (2) CPS Tube (2) Vortex Trap Peak State ------------ > --- POWER ------------ Ion Engine > --- PROPULSION ------- Light Treads Light Treads > --- UTILITY ---------- High-capacity Storage Unit Structural Scanner > --- WEAPON ----------- LU-1G1's Laser Shovel Companion Sword > --- INVENTORY -------- Meta Core Spiked Treads Medium Treads Scrap Suit Scrap Suit Scrap Suit Scrap Suit Expert System Scrapoid Pod Assault Rifle Battle Rifle CPS Tube CPS Tube CPS Tube Vortex Trap [Rating: 25] Favorites ----------- Power Ion Engine Engine Ion Engine Propulsion Light Treads Treads Light Treads Leg Aluminum Leg Utility High-capacity Storage Unit Device Structural Scanner Storage High-capacity Storage Unit Protection Core Shielding Weapon Assault Rifle Energy Gun Small Laser Energy Cannon Subdweller Beam Cannon Ballistic Gun Assault Rifle Special Weapon LU-1G1's Laser Shovel Slashing Weapon Companion Sword Build | -11 -10 -10 -9 ------- Run | Yrd Mat Sub Scr Slots Evolved . | . . . . Power . | . . . . Propulsion . | . . . . Utility . | . . . . Weapon . | . . . . Parts Attached 12 | 3 1 2 6 Power . | . . . . Engine . | . . . . Core . | . . . . Reactor . | . . . . Propulsion 5 | 2 . . 3 Treads 5 | 2 . . 3 Leg . | . . . . Wheel . | . . . . Hover . | . . . . Flight . | . . . . Utility 3 | . 1 1 1 Device 1 | . . . 1 Storage 1 | . . 1 . Processor . | . . . . Hackware . | . . . . Protection 1 | . 1 . . Artifact . | . . . . Weapon 4 | 1 . 1 2 Energy Gun . | . . . . Energy Cannon 1 | . . 1 . Ballistic Gun 1 | 1 . . . Ballistic Cannon . | . . . . Launcher . | . . . . Special Weapon 1 | . . . 1 Impact Weapon . | . . . . Slashing Weapon 1 | . . . 1 Piercing Weapon . | . . . . Special Melee Weapon . | . . . . Unidentified Prototypes 2 | . . . 2 Parts Lost 3 | . . . 3 Power 1 | . . . 1 Propulsion 1 | . . . 1 Utility 1 | . . . 1 Weapon . | . . . . Highest Loss Streak 3 | . . . 3 To Critical Strikes . | . . . . Average Backups 13 | 6 3 11 13 Power 1 | 1 1 2 1 Propulsion 1 | 4 . 1 1 Utility 3 | . . 3 4 Weapon 3 | 1 . 4 3 Tool/Special . | . . . . Unused Backups 26 | . . . 26 Power 2 | . . . 2 Propulsion . | . . . . Utility 13 | . . . 13 Weapon 6 | . . . 6 Tool/Special 5 | . . . 5 Average Slot Usage (%) 92 | . 95 100 90 Engine 13 | . 14 14 13 Treads 27 | . 28 28 27 Device 10 | . . . 13 Storage 14 | . 14 14 14 Protection 2 | . 9 14 . Energy Cannon 3 | . . 12 1 Ballistic Gun 14 | . 28 15 13 Slashing Weapon 3 | . . . 3 Peak Build Rating 25 | 6 7 12 25 Average Rating 11 | 5 6 9 12 On Entrance 7 | 6 6 7 12 Naked Turns . | . . . . Heaviest Build 56 | 13 14 56 56 Greatest Support 48 | 40 40 40 48 Greatest Overweight (x) 1 | . . 1 1 Average Overweight (x) . | . . . . Largest Inventory Capacity 20 | 8 8 20 20 Average Capacity 19 | 8 8 17 20 Most Carried 20 | 6 4 20 20 Average Carried 15 | 3 3 14 16 Final Capacity 20 | 8 8 20 20 Final Carried 20 | 1 4 20 18 Class Distribution -------------------- 100% | Mutant Dominant Class ---------------- Mutant | -10/Materials Mutant | -10/Subcaves Mutant | -9/Scraptown Resources | -11 -10 -10 -9 ----------- Run | Yrd Mat Sub Scr Matter Collected 298 | 200 14 58 26 Remotely . | . . . . Salvage Created 225 | . 14 93 118 Parts 15 | . 2 7 6 Haulers Intercepted . | . . . . Recyclers Shooed . | . . . . Parts Field Recycled . | . . . . Retrieved Matter . | . . . . Parts Self-Destructed 7 | . . 7 . Prevented . | . . . . Kills | -11 -10 -10 -9 ------- Run | Yrd Mat Sub Scr Combat Hostiles Destroyed 4 | . . 2 2 Melee 2 | . . . 2 Cannons 2 | . . 2 . Classes Destroyed 4 | . 1 1 2 Watcher 1 | . 1 . . Subdweller 2 | . . 2 . Guru 1 | . . . 1 Scrapper 1 | . . . 1 Best Kill Streak 2 | . 1 2 1 Combat Bots Only 2 | . . 2 1 Max Kills in Single Turn 1 | . 1 1 1 Gunslinging . | . . . . Exploded . | . . . . Melee 1 | . . . 1 Uniques/NPCs Destroyed . | . . . . Combat | -11 -10 -10 -9 -------- Run | Yrd Mat Sub Scr Hostile Shots Fired 113 | . . 6 107 Missed 25 | . . 1 24 Hits 88 | . . 5 83 Melee 3 | . . . 3 Projectile 85 | . . 5 80 Critical Strikes 3 | . . . 3 Damage Taken 1010 | . . 101 909 Core 285 | . . . 285 Absorbed by Shields . | . . . . Core Remaining (%) 100 | 100 . . . Volleys Fired 20 | . 7 13 . Largest 2 | . 2 1 . Hottest 80 | . 40 80 . Shots Fired 27 | . 14 13 . Gun 14 | . 14 . . Cannon 13 | . . 13 . Launcher . | . . . . Special . | . . . . Kinetic 14 | . 14 . . Thermal 13 | . . 13 . Explosive . | . . . . Electromagnetic . | . . . . Robot Hit Streak 2 | . 2 2 . Robot Miss Streak 5 | . 3 5 . Penetration Max . | . . . . Secondary Targets . | . . . . Shots Hit Robots 12 | . 5 2 5 Core Hits 6 | . 2 2 2 Critical Kills . | . . . . Critical Parts Destroyed . | . . . . Critical Strikes . | . . . . Melee Attacks 11 | . . . 11 Impact . | . . . . Slashing 11 | . . . 11 Piercing . | . . . . Sneak Attacks . | . . . . Combat Hostiles . | . . . . Follow-up Attacks . | . . . . Damage Inflicted 268 | . 53 57 158 Guns 53 | . 53 . . Cannons 57 | . . 57 . Explosions . | . . . . Melee 158 | . . . 158 Ramming . | . . . . Kinetic 53 | . 53 . . Thermal 57 | . . 57 . Explosive . | . . . . Electromagnetic . | . . . . Impact . | . . . . Slashing 158 | . . . 158 Piercing . | . . . . Highest Corruption . | . . . . Average Corruption . | . . . . Corruption Purged . | . . . . Corruption Blocked . | . . . . Overload Shots . | . . . . Overflow Damage 23 | . . . 23 Projectiles . | . . . . Explosions . | . . . . Melee 23 | . . . 23 Knockbacks . | . . . . Impact . | . . . . Kinetic . | . . . . Secondary . | . . . . Self-Inflicted Damage . | . . . . Shots . | . . . . Rammed . | . . . . Targets Rammed . | . . . . Kicked . | . . . . Crushed . | . . . . Highest Temperature 17 | . . 12 17 Average Temperature 9 | . . 8 10 Received Heat Transfer 355 | . . 18 337 Siege Activations . | . . . . Martial Activations . | . . . . Shielding Activations . | . . . . Robots Disrupted . | . . . . Combat Hostiles . | . . . . Robots Corrupted . | . . . . Combat Hostiles . | . . . . Parts Fried . | . . . . Impact Corruptions . | . . . . Robots Melted . | . . . . Combat Hostiles . | . . . . Parts Melted 2 | . . . 2 Heat Transferred 74 | . . 74 . Parts Sabotaged . | . . . . Parts Stolen . | . . . . Parts Stripped . | . . . . Power Chain Reactions . | . . . . Alert | -11 -10 -10 -9 ------- Run | Yrd Mat Sub Scr Maximum Alert Level . | . . . . Low Security (%) 100 | 100 100 . . Level 1 . | . . . . Level 2 . | . . . . Level 3 . | . . . . Level 4 . | . . . . Level 5 . | . . . . High Security . | . . . . Max Security . | . . . . Peak Influence 7 | . 7 . . Initial . | . . . . Average . | . . . . Influence Increases 7 | . 7 . . Destroy 0b10 Robot/NC 5 | . 5 . . Destroy Leader 2 | . 2 . . Influence Decreases 7 | . 7 . . Time Decay 7 | . 7 . . Squads Dispatched . | . . . . Investigation . | . . . . Extermination . | . . . . Reinforcement . | . . . . Assault . | . . . . Garrison . | . . . . Intercept . | . . . . Searches Triggered . | . . . . Construction Impeded . | . . . . Haulers Reinforced . | . . . . Active Scanning Responses . | . . . . Cargo Convoy Interrupts . | . . . . Stealth | -11 -10 -10 -9 --------- Run | Yrd Mat Sub Scr Distress Signals . | . . . . Communications Jammed . | . . . . Distress Signals . | . . . . Times Spotted 14 | . 3 2 9 Peak Tracking Total 6 | . 3 2 6 Tactical Retreats . | . . . . Traps | -11 -10 -10 -9 ------- Run | Yrd Mat Sub Scr Traps Triggered . | . . . . Indirectly . | . . . . Trap Hack Attempts . | . . . . Triggered . | . . . . Disarmed . | . . . . Reprogrammed . | . . . . Reused . | . . . . Traps Extracted . | . . . . Installed . | . . . . Triggered . | . . . . Most Traps Carried 1 | . . . 1 Machines | -11 -10 -10 -9 ---------- Run | Yrd Mat Sub Scr Machines Disabled 4 | . . 1 3 Max in Single Turn 1 | . . 1 1 Machines Repaired . | . . . . Machines Dismantled . | . . . . Machines Sabotaged . | . . . . Overloaded Fab Kills . | . . . . Hacking | -11 -10 -10 -9 --------- Run | Yrd Mat Sub Scr Machines Accessed 9 | . . 1 8 Terminals . | . . . . Fabricators . | . . . . Repair Stations . | . . . . Recycling Units . | . . . . Scanalyzers . | . . . . Garrison Access . | . . . . Total Hacks 38 | . . 1 37 Successful 38 | . . 1 37 Failed . | . . . . Catastrophic . | . . . . Database Lockouts . | . . . . Manual . | . . . . Terminals . | . . . . Fabricators . | . . . . Repair Stations . | . . . . Recycling Units . | . . . . Scanalyzers . | . . . . Garrison Access . | . . . . Terminal Hacks 38 | . . 1 37 Record 35 | . . . 35 Open Door 1 | . . . 1 Proto ID Catalog 2 | . . 1 1 Fabricator Hacks . | . . . . Repair Station Hacks . | . . . . Recycling Unit Hacks . | . . . . Scanalyzer . | . . . . Garrison Access Hacks . | . . . . Unauthorized Hacks . | . . . . Terminals . | . . . . Fabricators . | . . . . Repair Stations . | . . . . Recycling Units . | . . . . Scanalyzers . | . . . . Garrison Access . | . . . . Data Cores Recovered . | . . . . Used . | . . . . Hacking Detections . | . . . . Full Trace Events . | . . . . Feedback Events . | . . . . Feedback Blocked . | . . . . Robot Schematics Acquired . | . . . . Robots Built . | . . . . Authchips . | . . . . Time . | . . . . Total Robot Build Rating . | . . . . Part Schematics Acquired . | . . . . Parts Built . | . . . . Authchips . | . . . . Time . | . . . . Total Part Build Rating . | . . . . Parts Repaired . | . . . . Time . | . . . . Parts Recycled . | . . . . Recycled Matter . | . . . . Retrieved Matter . | . . . . Retrieved Components . | . . . . Parts Scanalyzed . | . . . . Part Schematics Acquired . | . . . . Parts Damaged . | . . . . Bothacking | -11 -10 -10 -9 ------------ Run | Yrd Mat Sub Scr Used RIF Installer . | . . . . Robots Hacked . | . . . . Non-combat . | . . . . Combat . | . . . . Robot Hacks Applied . | . . . . Relay Couplers Released . | . . . . Fabnet Peak Effective % . | . . . . Robots Rewired . | . . . . Allies Hacked . | . . . . Hacks Repelled . | . . . . Allies | -11 -10 -10 -9 -------- Run | Yrd Mat Sub Scr Total Allies . | . . . . Largest Group . | . . . . Highest-Rated Group . | . . . . Highest-Rated Ally . | . . . . Total Orders . | . . . . Ally Attacks . | . . . . Total Damage . | . . . . Kills . | . . . . Allies Corrupted . | . . . . Allies Melted 4 | . . . 4 Intel | -11 -10 -10 -9 ------- Run | Yrd Mat Sub Scr Active Infowar (turns) 5076 | . . . 5076 Structural 5076 | . . . 5076 Robot Analysis Total . | . . . . Derelict Logs Recovered 6 | . . 1 5 Drone Launches . | . . . . Drone Recoveries . | . . . . Exploration | -11 -10 -10 -9 ------------- Run | Yrd Mat Sub Scr Turns Passed 6574 | 6 288 1112 5168 Spaces Moved 2586 | 1 116 482 1987 Core . | . . . . Treads 2586 | 1 116 482 1987 Legs . | . . . . Wheels . | . . . . Hover . | . . . . Flight . | . . . . Fastest Speed 160 | 160 160 160 160 Average Speed 232 | 160 160 221 239 Slowest Speed 240 | 160 160 240 240 Overloaded Moves . | . . . . Propulsion Burnouts . | . . . . Robots Hopped . | . . . . Potential Cave-ins 1 | . . . 1 Cave-ins Triggered . | . . . . Exploration Rate (%) 39 | 2 29 34 91 Regions Visited 3 Branch Regions 2 Pre-discovered Areas 1 | . . 1 . Known Exits Taken . | . . . . Unknown Exits Taken 3 | 1 1 1 . Scrap Searched 3 | . . . 3 Spaces Dug 12 | . . 1 11 Terrain Destroyed 10 | . . 1 9 Melee . | . . . . Projectile 1 | . . 1 . AOE . | . . . . Terrain Rammed . | . . . . Walls Destroyed . | . . . . Machines Disabled . | . . . . Actions | -11 -10 -10 -9 --------- Run | Yrd Mat Sub Scr Total 3117 | 8 205 513 2391 Wait 426 | . 79 2 345 Move 2583 | . 115 481 1987 Hop . | . . . . Pick Up 33 | . 3 14 16 Fast Attach 5 | . 1 1 3 Attach 4 | 3 . . 1 Detach 3 | . . 1 2 Swap 4 | . . 1 3 Drop 28 | 5 . . 23 Fire 20 | . 7 13 . Melee 11 | . . . 11 Ram . | . . . . Kick . | . . . . Crush . | . . . . Escape Stasis . | . . . . Rewire . | . . . . Trap . | . . . . Miscellaneous . | . . . . Route ------- -11/Scrapyard -10/Materials (discovered 2 exits: [*Mat] / *Sub) -10/Subcaves -9/Scraptown (discovered 1 exit: [*Fac]) History --------- Turn | Location | Event 7 | -11/Scrapyard | Discovered new exit (range 0) 7 | -11/Scrapyard | Entered Materials 145 | -10/Materials | Discovered new exit (range 8) 278 | -10/Materials | Discovered new exit (range 5) 295 | -10/Materials | Entered Subcaves 296 | -10/Subcaves | Approached by a straggling Scientist 314 | -10/Subcaves | Build established: Mutant 404 | -10/Subcaves | Shifting Twisted Machinery released Battle Rifle 408 | -10/Subcaves | Shifting Twisted Machinery released Sub. Beam Cannon 583 | -10/Subcaves | Learned location of Zion (-7) 1045 | -10/Subcaves | Scientist uncovered a shortcut to Scraptown 1065 | -10/Subcaves | Shifting Twisted Machinery released Scrap Shield 1070 | -10/Subcaves | Shifting Twisted Machinery released Riot Gun 1270 | -10/Subcaves | Visited 4L-MR0's lab 1290 | -10/Subcaves | Found Meta Core 1407 | -10/Subcaves | Entered Scraptown 2041 | -9/Scraptown | Scanned Subdweller tech in exchange for log data 2045 | -9/Scraptown | Learned Factory stockpile data 2048 | -9/Scraptown | Learned Research security intel 2053 | -9/Scraptown | Learned location of 2 exits from Proximity Caves 2055 | -9/Scraptown | Learned Research terminal intel 2355 | -9/Scraptown | Discovered new exit (range 3) 2528 | -9/Scraptown | Visited Symbiants 2600 | -9/Scraptown | Visited Fellowship of the Rings 2648 | -9/Scraptown | Visited Awakened 2708 | -9/Scraptown | Visited TADAMA 2792 | -9/Scraptown | Visited Assassins FH 3569 | -9/Scraptown | Visited Red Mages 3637 | -9/Scraptown | Found Relay Coupler [Proto] 3719 | -9/Scraptown | Visited Cyclists 3788 | -9/Scraptown | Visited UFD Registry 3788 | -9/Scraptown | Registered with UFD as "Mattergrid" 3834 | -9/Scraptown | Entered Cyclist Reading Room 4045 | -9/Scraptown | Visited Curators Association 4086 | -9/Scraptown | Visited Science Guys 4172 | -9/Scraptown | Visited Junk Repository 4343 | -9/Scraptown | Visited Abandonware Association 4372 | -9/Scraptown | Learned abandonware demo "MELTYB.EXE" 4376 | -9/Scraptown | Learned abandonware demo "OVRCLOCK.EXE" 4424 | -9/Scraptown | Visited A0-MCA Data Center 4622 | -9/Scraptown | Visited Scrap Suit Storage 4706 | -9/Scraptown | Visited LU-1G1's Boring Crew 5123 | -9/Scraptown | Visited Sword Containment 5202 | -9/Scraptown | Visited Scrapoid Pod Storage 5235 | -9/Scraptown | Visited Research Penetration Think Tank 5402 | -9/Scraptown | Delivered Scrap Shield to a Scientist 5594 | -9/Scraptown | Found Scrapoid Pod 5794 | -9/Scraptown | Found Scrap Suit 5797 | -9/Scraptown | Found Scrap Suit 5801 | -9/Scraptown | Found Scrap Suit 5804 | -9/Scraptown | Found Scrap Suit 6130 | -9/Scraptown | Met Optimus 6130 | -9/Scraptown | Accepted into 0bPrime 6403 | -9/Scraptown | Civil war broke out across Scraptown 6417 | -9/Scraptown | Found Prototype Special Weapon 6417 | -9/Scraptown | Identified LU-1G1's Laser Shovel 6483 | -9/Scraptown | Found Prototype Processor 6513 | -9/Scraptown | Lost 4 allies 6542 | -9/Scraptown | Core integrity fell below 50% 6551 | -9/Scraptown | Core integrity fell below 20% 6560 | -9/Scraptown | Lost 3 allies 6575 | -9/Scraptown | Destroyed by WW-OJY(b) with Great Maul Last Messages --------------- 06520_ Bolt penetrates Machine. 06521_ Ion Engine destroyed. 06524_ Bolt penetrates Machine. 06532_ Machine collapses. 06532_ Destroyed Imp. Hover Unit. 06532_ 2Y-1PJ(p) destroyed. 06533_ Penetrated by Bolt. 06542_ Structural Scanner destroyed. 06543_ Penetrated by Bolt. 06548_ Bolt penetrates Machine. 06549_ Lgt. Treads destroyed. Companion Sword: "It's comeback time!" 06552_ Bolt penetrates Machine. 06553_ 2T-JSG(j) heat spikes uncontrollably. 06553_ 2T-JSG(j) overheating. 06557_ Bolt penetrates Machine. 06562_ Bolt penetrates Wall. 06574_ Ovr. Pulse Rifle melted. 06574_ Lgt. Deuterium Engine melted. 06574_ 2T-JSG(j) destroyed. Map ----- +----------------------------------------------------+ | ?????????????????????????????????????????????????? | | ?????????????????????????????????????????????????? | | ?????????????????????????????????????????????????? | | ?????????????????????????????????????????????????? | | ?????????????????????????????????????????????????? | | ?????????????????????????????????????????????????? | | ?????????????????????????????????????????????????? | | ?????????????????????????????????????????????????? | | ?????????????????????????????????????????????????? | | ?????????????????????????????????????????????????? | | ?????????????????????????????????????????????????? | | ?????????????????????????????????????????????????? | | ?????????????????????????????????????????????????? | | ?????????????????????????????????????????????????? | | ###################??????????????????????????????? | | ###################??????????????????????????????? | | #"# ##"""""""""""##?????????? ############??????? | | " ####""""" X """##????????## ############??????? | | " "#""" """"##????????## #"""""""""##??????? | | ""##" "!""##????????## #!" " " ##??????? | | "$##""" """"############! #=% ##??????? | | ""##"""" ""########### %="[!"# #" ##??????? | | "#"" #==#[/!#*]#" !# ["#X#" ##??????? | | ""##"" "" " #]!# [[#!=##=%# "###" ##??????? | | "!##"" "" " # # # ##[=# """" ##??????? | | ""## "# @=##![! ##??????? | | ??"#" # b=%!;=%= ##??????? | | ########### ########### ###!;%!;# ##############?? | | ########### ###########h##";; ;# ####"#########?? | | """""""""""%""""""" " """ "## " """""""##? | | =%! % [ !%%= "## "" " """"##? | | =* * *%! =*[ ## """ """""##? | | [% ! "## """"##? | | = ! ! ;" """"##? | | % %= [! [ ! " """"##? | | """""""""""""""" """" "" "%%= *%"## """""""""##? | | """""""""""""""""""""""" =[ ="## """""""""??? | | ""###### ################"" ! "## """""""""#?? | | ""# ###########" %= "##"##########?? | | ""# X"##??????##"" "## #"""""# ?? | | ""# "" "" ###????####""[= "## ! # #? | | ""# "" "" X"##########"[%!! #" ##"##? | | ""# " " ######### #""=!= ## X" ##? | | "" "" = !%[ ##? | | "" "" [%* ! "## ##? | | ""# " " #########=#" "## !!!! !##? | | ""# "" "" ""##########"" "## """"""#""##? | | ""# "" "" ###????####"" "####"#########? | | ""# X"##??????##"" "##### ########? | | ""# ###########"" "######"#######? | +----------------------------------------------------+ Best States ------------- Heat Dissipation 25 Energy Generation 10 Energy Capacity 250 Matter Stores 300 Matter Capacity 300 Sight Range 16 Terrain Scan Density 10 Core Shielding 20 Evasion (%) 40 Recoil Reduction 2 Item Schematics ----------------- None Robot Schematics ------------------ None Fabricated ------------ Nothing Repaired ---------- Nothing Alien Tech Used ----------------- None Achievements -------------- None Challenges ------------ None Game ------ Seed PartitionContainmentAnalyzer Manual? 0 Play Time 00:37:13 Cumulative 486.8 hours Start 2025.05.24 @ 17:58:54 End 2025.05.26 @ 02:36:58 Sessions 2 Manual Loads 0 Difficulty Rogue Special Mode None Game No. 536 Rogue 536 Adventurer 0 Explorer 0 Win Type - Total 14 Types 9/0/4/1/0/0/0/0/0/0 Lore% 68 Gallery% 78 Achievement% 82 Wizard Run 0 Options --------- Layout 0 ASCII 0 Keyboard 0 Movement Numpad Keybinds 0 Fullscreen 1 Font 18/SmallcapsGlow Map View 76x50 Zoom Use 0% Tactical HUD 1 Map Filters NONE Filters NONE Steam 1 RUN: 938de81c-c60e-42ac-a16e-6c909b0c7150